[Event "Late-Titled-Tuesday-Blitz-April-16-2024"]
[Site "Chess.com"]
[Date "2024.04.16"]
[Round "10"]
[White "GaiozNigalidze"]
[Black "FuenfgegenWilly"]
[Result "0-1"]
[WhiteElo "2669"]
[BlackElo "2480"]
[TimeControl "180+1"]
[EndTime "15:54:39 PDT"]
[Termination "FuenfgegenWilly won on time"]

1. e4 {[%clk 0:03:00.9]} 1... e5 {[%clk 0:02:59.8]} 2. Nf3 {[%clk 0:03:00.9]}
2... Nc6 {[%clk 0:03:00.4]} 3. Bb5 {[%clk 0:03:01.1]} 3... a6 {[%clk 0:03:01]}
4. Ba4 {[%clk 0:03:01]} 4... d6 {[%clk 0:03:01.6]} 5. O-O {[%clk 0:03:01.1]}
5... g5 {[%clk 0:03:01.6]} 6. c3 {[%clk 0:02:59.3]} 6... g4 {[%clk 0:03:01.8]}
7. Ne1 {[%clk 0:02:59.2]} 7... h5 {[%clk 0:02:58.1]} 8. d4 {[%clk 0:02:58.3]}
8... Bd7 {[%clk 0:02:55.5]} 9. dxe5 {[%clk 0:02:56]} 9... Nxe5 {[%clk
0:02:54.3]} 10. Bxd7+ {[%clk 0:02:54.3]} 10... Qxd7 {[%clk 0:02:54.5]} 11. Bf4
{[%clk 0:02:53]} 11... Bg7 {[%clk 0:02:51.5]} 12. Nd2 {[%clk 0:02:51.1]} 12...
Ne7 {[%clk 0:02:50.7]} 13. Bxe5 {[%clk 0:02:48.9]} 13... Bxe5 {[%clk 0:02:48.8]}
14. Nc4 {[%clk 0:02:49.4]} 14... Ng6 {[%clk 0:02:40.5]} 15. Ne3 {[%clk
0:02:45.5]} 15... O-O-O {[%clk 0:02:37.5]} 16. a4 {[%clk 0:02:33.9]} 16... Rdg8
{[%clk 0:02:35]} 17. b4 {[%clk 0:02:30.7]} 17... Bxc3 {[%clk 0:02:33.3]} 18. Rb1
{[%clk 0:02:30.2]} 18... Ne5 {[%clk 0:02:22.5]} 19. b5 {[%clk 0:02:12.5]} 19...
Bxe1 {[%clk 0:02:08.7]} 20. bxa6 {[%clk 0:02:08.1]} 20... bxa6 {[%clk
0:01:29.1]} 21. Qb3 {[%clk 0:01:58]} 21... Kd8 {[%clk 0:01:26.1]} 22. Rfxe1
{[%clk 0:01:47.6]} 22... Ke7 {[%clk 0:01:21.1]} 23. Nd5+ {[%clk 0:01:41.2]}
23... Kf8 {[%clk 0:01:19.7]} 24. Nf6 {[%clk 0:01:41.1]} 24... Qe7 {[%clk
0:01:12.2]} 25. Nxg8 {[%clk 0:01:36.9]} 25... Rxg8 {[%clk 0:01:12.6]} 26. Qe3
{[%clk 0:01:30.9]} 26... Rg6 {[%clk 0:01:07.1]} 27. Rec1 {[%clk 0:01:23.6]}
27... c5 {[%clk 0:01:00.9]} 28. Rb6 {[%clk 0:01:11.2]} 28... Kg7 {[%clk
0:00:55.6]} 29. Rxa6 {[%clk 0:01:05.9]} 29... Qb7 {[%clk 0:00:55.2]} 30. Ra5
{[%clk 0:01:06.2]} 30... h4 {[%clk 0:00:41.2]} 31. Rb5 {[%clk 0:00:46.5]} 31...
Qa6 {[%clk 0:00:37.6]} 32. Qb3 {[%clk 0:00:33.5]} 32... c4 {[%clk 0:00:36.7]}
33. Qb4 {[%clk 0:00:17.7]} 33... Qa7 {[%clk 0:00:31.1]} 34. Qd2 {[%clk
0:00:09.9]} 34... Qxa4 {[%clk 0:00:29.6]} 35. Rb6 {[%clk 0:00:06.7]} 35... Qa3
{[%clk 0:00:29.5]} 36. Rd1 {[%clk 0:00:05.1]} 36... c3 {[%clk 0:00:21]} 37. Qc2
{[%clk 0:00:05.1]} 37... Qc5 {[%clk 0:00:21]} 38. Rb3 {[%clk 0:00:05.2]} 38...
g3 {[%clk 0:00:21.3]} 39. Rxc3 {[%clk 0:00:05.4]} 39... gxf2+ {[%clk 0:00:21]}
40. Kf1 {[%clk 0:00:05]} 40... Qb5+ {[%clk 0:00:20.6]} 41. Qe2 {[%clk
0:00:04.8]} 41... Qb4 {[%clk 0:00:20.6]} 42. Re3 {[%clk 0:00:03.3]} 42... Ng4
{[%clk 0:00:20.8]} 43. Rb3 {[%clk 0:00:01.1]} 43... Qc5 {[%clk 0:00:20.6]} 0-1

[Event "Late-Titled-Tuesday-Blitz-April-16-2024"]
[Site "Chess.com"]
[Date "2024.04.16"]
[Round "10"]
[White "SaqoChess_Twitch"]
[Black "mbojan"]
[Result "0-1"]
[WhiteElo "2698"]
[BlackElo "2955"]
[TimeControl "180+1"]
[EndTime "15:54:43 PDT"]
[Termination "mbojan won by resignation"]

1. d4 {[%clk 0:03:00.9]} 1... a6 {[%clk 0:03:00.2]} 2. e3 {[%clk 0:02:54.3]}
2... g6 {[%clk 0:02:58]} 3. Nf3 {[%clk 0:02:55.2]} 3... Bg7 {[%clk 0:02:58.6]}
4. Be2 {[%clk 0:02:55.6]} 4... d6 {[%clk 0:02:59.4]} 5. O-O {[%clk 0:02:56.3]}
5... Nd7 {[%clk 0:03:00.1]} 6. b3 {[%clk 0:02:56.9]} 6... e5 {[%clk 0:03:00.8]}
7. Bb2 {[%clk 0:02:57.6]} 7... e4 {[%clk 0:03:01.1]} 8. Nfd2 {[%clk 0:02:58]}
8... Ngf6 {[%clk 0:02:59.2]} 9. c4 {[%clk 0:02:58]} 9... O-O {[%clk 0:02:59.6]}
10. Nc3 {[%clk 0:02:58.6]} 10... Re8 {[%clk 0:03:00.2]} 11. Qc2 {[%clk
0:02:58.9]} 11... Qe7 {[%clk 0:03:00.4]} 12. Rae1 {[%clk 0:02:57.7]} 12... c6
{[%clk 0:02:57]} 13. f3 {[%clk 0:02:57.1]} 13... d5 {[%clk 0:02:54.1]} 14. fxe4
{[%clk 0:02:43.7]} 14... dxe4 {[%clk 0:02:53.4]} 15. Bd1 {[%clk 0:02:38.1]}
15... Nf8 {[%clk 0:02:43.2]} 16. Qb1 {[%clk 0:02:29.3]} 16... h5 {[%clk
0:02:40.2]} 17. Bc2 {[%clk 0:02:29.3]} 17... Bf5 {[%clk 0:02:39.8]} 18. a4
{[%clk 0:02:18.2]} 18... Rad8 {[%clk 0:02:38.4]} 19. a5 {[%clk 0:02:17.6]} 19...
Bh6 {[%clk 0:02:37.7]} 20. Qa1 {[%clk 0:02:04.1]} 20... N8h7 {[%clk 0:02:36.7]}
21. h3 {[%clk 0:02:00.7]} 21... Ng5 {[%clk 0:02:34.7]} 22. Rxf5 {[%clk
0:01:42.1]} 22... gxf5 {[%clk 0:02:34.6]} 23. Rf1 {[%clk 0:01:42.4]} 23... Nxh3+
{[%clk 0:02:28.4]} 24. gxh3 {[%clk 0:01:27.8]} 24... Bxe3+ {[%clk 0:02:28]} 25.
Kh1 {[%clk 0:01:28.1]} 25... Bxd2 {[%clk 0:02:08.1]} 26. Rxf5 {[%clk 0:01:26.3]}
26... Qe6 {[%clk 0:02:08.2]} 27. Qf1 {[%clk 0:01:14.7]} 27... Nh7 {[%clk
0:00:56.5]} 28. d5 {[%clk 0:01:09.9]} 28... Qh6 {[%clk 0:00:45.1]} 29. Nxe4
{[%clk 0:00:52.9]} 29... Be3 {[%clk 0:00:40.5]} 30. Rxf7 {[%clk 0:00:42.9]}
30... Rf8 {[%clk 0:00:41]} 31. Rxf8+ {[%clk 0:00:23.7]} 31... Rxf8 {[%clk
0:00:41.9]} 32. Qg2+ {[%clk 0:00:23.2]} 32... Kf7 {[%clk 0:00:42.6]} 33. dxc6
{[%clk 0:00:18.7]} 33... bxc6 {[%clk 0:00:43.5]} 34. c5 {[%clk 0:00:17.7]} 34...
Bf4 {[%clk 0:00:39.5]} 35. b4 {[%clk 0:00:13.8]} 35... Qe6 {[%clk 0:00:29.1]}
36. Qf3 {[%clk 0:00:10.8]} 36... Ke8 {[%clk 0:00:29.3]} 37. Bb3 {[%clk
0:00:10.2]} 37... Qf5 {[%clk 0:00:28.2]} 38. Qd3 {[%clk 0:00:08.9]} 38... Ng5
{[%clk 0:00:25.5]} 39. Nd6+ {[%clk 0:00:04.1]} 39... Bxd6 {[%clk 0:00:25.7]} 40.
Qxf5 {[%clk 0:00:04.3]} 40... Rxf5 {[%clk 0:00:25.6]} 41. cxd6 {[%clk 0:00:05]}
41... Rf1+ {[%clk 0:00:24.1]} 42. Kg2 {[%clk 0:00:05]} 42... Rb1 {[%clk
0:00:25]} 43. d7+ {[%clk 0:00:03.7]} 43... Kxd7 {[%clk 0:00:25]} 44. Bf6 {[%clk
0:00:04.5]} 44... Rxb3 {[%clk 0:00:22.1]} 45. Bxg5 {[%clk 0:00:05.1]} 45... Rxb4
{[%clk 0:00:22.8]} 46. h4 {[%clk 0:00:05.6]} 46... Rb5 {[%clk 0:00:23.4]} 47.
Kg3 {[%clk 0:00:06.3]} 47... Rxa5 {[%clk 0:00:23.9]} 48. Bf6 {[%clk 0:00:06.8]}
48... Rf5 {[%clk 0:00:24.1]} 49. Bg5 {[%clk 0:00:07.1]} 49... c5 {[%clk
0:00:23.9]} 0-1

[Event "Late-Titled-Tuesday-Blitz-April-16-2024"]
[Site "Chess.com"]
[Date "2024.04.16"]
[Round "10"]
[White "GoltsevDmitry2000"]
[Black "MFatigue"]
[Result "1/2-1/2"]
[WhiteElo "2758"]
[BlackElo "2559"]
[TimeControl "180+1"]
[EndTime "15:54:44 PDT"]
[Termination "Game drawn - insufficient material"]

1. e4 {[%clk 0:02:58.5]} 1... e6 {[%clk 0:03:00.5]} 2. d4 {[%clk 0:02:58.4]}
2... d5 {[%clk 0:03:01.1]} 3. exd5 {[%clk 0:02:59.3]} 3... exd5 {[%clk 0:03:01]}
4. Nf3 {[%clk 0:03:00.2]} 4... Nf6 {[%clk 0:03:01.5]} 5. c4 {[%clk 0:03:01]}
5... Bb4+ {[%clk 0:03:01.4]} 6. Nc3 {[%clk 0:03:00.5]} 6... O-O {[%clk
0:03:01.8]} 7. Be2 {[%clk 0:03:00.7]} 7... Bg4 {[%clk 0:03:00.9]} 8. O-O {[%clk
0:03:00.6]} 8... Nc6 {[%clk 0:02:59.1]} 9. Bg5 {[%clk 0:03:00.5]} 9... dxc4
{[%clk 0:02:45.5]} 10. Bxc4 {[%clk 0:02:59.5]} 10... Be7 {[%clk 0:02:43.8]} 11.
Re1 {[%clk 0:02:57.7]} 11... h6 {[%clk 0:02:43.2]} 12. Bh4 {[%clk 0:02:57.7]}
12... Re8 {[%clk 0:02:36.7]} 13. h3 {[%clk 0:02:52.2]} 13... Bxf3 {[%clk
0:02:31.8]} 14. Qxf3 {[%clk 0:02:52.6]} 14... Qxd4 {[%clk 0:02:32.2]} 15. Bxf6
{[%clk 0:02:48]} 15... Bxf6 {[%clk 0:02:26.3]} 16. Bb3 {[%clk 0:02:46.4]} 16...
Qd2 {[%clk 0:02:02]} 17. Rxe8+ {[%clk 0:02:28.2]} 17... Rxe8 {[%clk 0:02:02.9]}
18. Ne4 {[%clk 0:02:25.8]} 18... Qxb2 {[%clk 0:02:00]} 19. Re1 {[%clk
0:02:19.8]} 19... Kf8 {[%clk 0:01:25.2]} 20. Kh2 {[%clk 0:02:04.9]} 20... Qe5+
{[%clk 0:01:19.4]} 21. g3 {[%clk 0:02:04.8]} 21... Nd4 {[%clk 0:01:18]} 22. Qd3
{[%clk 0:02:00.6]} 22... Nxb3 {[%clk 0:01:18.1]} 23. Qxb3 {[%clk 0:01:56.3]}
23... b6 {[%clk 0:01:10.8]} 24. Qa3+ {[%clk 0:01:47.1]} 24... c5 {[%clk
0:01:02.2]} 25. Qxa7 {[%clk 0:01:45.3]} 25... Qd5 {[%clk 0:00:40.8]} 26. Nxf6
{[%clk 0:01:18.7]} 26... gxf6 {[%clk 0:00:41.7]} 27. Rxe8+ {[%clk 0:01:17.6]}
27... Kxe8 {[%clk 0:00:42.6]} 28. Qxb6 {[%clk 0:01:12.9]} 28... Qxa2 {[%clk
0:00:40]} 29. Qxc5 {[%clk 0:01:07.6]} 29... Qe6 {[%clk 0:00:34.6]} 30. Qh5
{[%clk 0:00:44.9]} 30... f5 {[%clk 0:00:34.5]} 31. Qd1 {[%clk 0:00:42.3]} 31...
Kf8 {[%clk 0:00:33.6]} 32. Kg2 {[%clk 0:00:42.1]} 32... Kg7 {[%clk 0:00:34]} 33.
Qd4+ {[%clk 0:00:41.8]} 33... Kg6 {[%clk 0:00:34.3]} 34. h4 {[%clk 0:00:37.8]}
34... Qe4+ {[%clk 0:00:30.7]} 35. Qxe4 {[%clk 0:00:37.6]} 35... fxe4 {[%clk
0:00:31.6]} 36. g4 {[%clk 0:00:37.9]} 36... Kf6 {[%clk 0:00:14.2]} 37. f4 {[%clk
0:00:05.6]} 37... exf3+ {[%clk 0:00:11.7]} 38. Kxf3 {[%clk 0:00:06.5]} 38... h5
{[%clk 0:00:06.6]} 39. gxh5 {[%clk 0:00:03.6]} 39... Kg7 {[%clk 0:00:07]} 40.
Kf4 {[%clk 0:00:03.7]} 40... Kh6 {[%clk 0:00:07.5]} 41. Kg4 {[%clk 0:00:04.2]}
41... f5+ {[%clk 0:00:07.6]} 42. Kxf5 {[%clk 0:00:05]} 42... Kxh5 {[%clk
0:00:08.2]} 43. Kf6 {[%clk 0:00:05.7]} 43... Kxh4 {[%clk 0:00:09.1]} 1/2-1/2

[Event "Late-Titled-Tuesday-Blitz-April-16-2024"]
[Site "Chess.com"]
[Date "2024.04.16"]
[Round "10"]
[White "Mikhail_Bryakin"]
[Black "BeanScreen"]
[Result "0-1"]
[WhiteElo "2868"]
[BlackElo "2688"]
[TimeControl "180+1"]
[EndTime "15:54:47 PDT"]
[Termination "BeanScreen won on time"]

1. e4 {[%clk 0:02:59.1]} 1... e5 {[%clk 0:02:59.9]} 2. Nf3 {[%clk 0:02:58.4]}
2... Nc6 {[%clk 0:03:00.4]} 3. Nc3 {[%clk 0:02:57.4]} 3... Nf6 {[%clk
0:03:00.1]} 4. d4 {[%clk 0:02:55.8]} 4... exd4 {[%clk 0:02:59.9]} 5. Nxd4 {[%clk
0:02:56.5]} 5... Nxe4 {[%clk 0:02:57.3]} 6. Nxe4 {[%clk 0:02:37.7]} 6... Qe7
{[%clk 0:02:57.1]} 7. Qd3 {[%clk 0:01:49.7]} 7... d5 {[%clk 0:02:56.2]} 8. Nxc6
{[%clk 0:01:47.3]} 8... bxc6 {[%clk 0:02:57.1]} 9. Bf4 {[%clk 0:01:37.3]} 9...
dxe4 {[%clk 0:02:49.5]} 10. Qc4 {[%clk 0:01:36.9]} 10... Qb4+ {[%clk 0:02:48.9]}
11. Qxb4 {[%clk 0:01:36.7]} 11... Bxb4+ {[%clk 0:02:49.8]} 12. Bd2 {[%clk
0:01:29.5]} 12... Bc5 {[%clk 0:02:37.3]} 13. Be3 {[%clk 0:01:19.1]} 13... Bxe3
{[%clk 0:02:33.4]} 14. fxe3 {[%clk 0:01:20]} 14... Ke7 {[%clk 0:02:29.5]} 15.
Kd2 {[%clk 0:01:15.6]} 15... Rd8+ {[%clk 0:02:27.8]} 16. Kc3 {[%clk 0:01:16]}
16... Be6 {[%clk 0:02:24.5]} 17. Be2 {[%clk 0:01:15.1]} 17... Kf6 {[%clk
0:02:23.6]} 18. Rhf1+ {[%clk 0:01:13.8]} 18... Ke5 {[%clk 0:02:23.5]} 19. h4
{[%clk 0:01:06.6]} 19... Rd5 {[%clk 0:02:11.3]} 20. b3 {[%clk 0:00:57.2]} 20...
Rad8 {[%clk 0:02:10.1]} 21. Rad1 {[%clk 0:00:57.6]} 21... Rxd1 {[%clk
0:02:06.9]} 22. Bxd1 {[%clk 0:00:55.1]} 22... f5 {[%clk 0:01:59.8]} 23. g3
{[%clk 0:00:43.6]} 23... g6 {[%clk 0:01:59.3]} 24. Be2 {[%clk 0:00:42.1]} 24...
h6 {[%clk 0:01:57.1]} 25. Rd1 {[%clk 0:00:37]} 25... Rxd1 {[%clk 0:01:34.3]} 26.
Bxd1 {[%clk 0:00:37.9]} 26... g5 {[%clk 0:01:34.6]} 27. hxg5 {[%clk 0:00:37.6]}
27... hxg5 {[%clk 0:01:35.5]} 28. Kd2 {[%clk 0:00:37.9]} 28... f4 {[%clk
0:01:35]} 29. gxf4+ {[%clk 0:00:37.5]} 29... gxf4 {[%clk 0:01:35.9]} 30. exf4+
{[%clk 0:00:35.8]} 30... Kxf4 {[%clk 0:01:36]} 31. Bh5 {[%clk 0:00:34.2]} 31...
Bg4 {[%clk 0:01:30.1]} 32. Be8 {[%clk 0:00:32.5]} 32... e3+ {[%clk 0:01:28.9]}
33. Ke1 {[%clk 0:00:32.5]} 33... Bf3 {[%clk 0:01:28.4]} 34. c3 {[%clk
0:00:29.5]} 34... c5 {[%clk 0:01:23.3]} 35. Bg6 {[%clk 0:00:26.9]} 35... Be4
{[%clk 0:01:17.5]} 36. Be8 {[%clk 0:00:25.9]} 36... Bb1 {[%clk 0:01:16.8]} 37.
a3 {[%clk 0:00:25.4]} 37... Ba2 {[%clk 0:01:10.1]} 38. b4 {[%clk 0:00:25.6]}
38... cxb4 {[%clk 0:01:05.5]} 39. axb4 {[%clk 0:00:25.8]} 39... Ke4 {[%clk
0:01:04.6]} 40. Bg6+ {[%clk 0:00:26]} 40... Kf4 {[%clk 0:01:00.5]} 41. Bd3
{[%clk 0:00:23.2]} 41... Bd5 {[%clk 0:00:58.7]} 42. Bh7 {[%clk 0:00:21.9]} 42...
Be4 {[%clk 0:00:56.6]} 43. Bg8 {[%clk 0:00:22.2]} 43... Bd3 {[%clk 0:00:56.3]}
44. Bf7 {[%clk 0:00:20.7]} 44... Ke5 {[%clk 0:00:55.8]} 45. Bg8 {[%clk
0:00:20.6]} 45... Kd6 {[%clk 0:00:54.7]} 46. Bb3 {[%clk 0:00:18.9]} 46... c5
{[%clk 0:00:54]} 47. Ba4 {[%clk 0:00:13.6]} 47... cxb4 {[%clk 0:00:51.6]} 48.
cxb4 {[%clk 0:00:13.5]} 48... Kd5 {[%clk 0:00:52.3]} 49. Be8 {[%clk 0:00:08.6]}
49... Kc4 {[%clk 0:00:51.8]} 50. b5 {[%clk 0:00:07.9]} 50... Kc5 {[%clk
0:00:50.8]} 51. Bd7 {[%clk 0:00:07.3]} 51... Bxb5 {[%clk 0:00:46.8]} 52. Be6
{[%clk 0:00:07]} 52... a5 {[%clk 0:00:44.3]} 53. Bb3 {[%clk 0:00:07.7]} 53...
Kb4 {[%clk 0:00:43.2]} 54. Bc2 {[%clk 0:00:07.2]} 54... a4 {[%clk 0:00:42.5]}
55. Bb1 {[%clk 0:00:07.7]} 55... Kb3 {[%clk 0:00:42.1]} 56. Bg6 {[%clk
0:00:05.1]} 56... a3 {[%clk 0:00:42.6]} 57. Bf7+ {[%clk 0:00:05.5]} 57... Bc4
{[%clk 0:00:43.2]} 0-1

[Event "Late-Titled-Tuesday-Blitz-April-16-2024"]
[Site "Chess.com"]
[Date "2024.04.16"]
[Round "10"]
[White "Supelyel"]
[Black "rionelG"]
[Result "0-1"]
[WhiteElo "2402"]
[BlackElo "2214"]
[TimeControl "180+1"]
[EndTime "15:54:49 PDT"]
[Termination "rionelG won by resignation"]

1. c4 {[%clk 0:03:00.9]} 1... c5 {[%clk 0:02:59.4]} 2. Nc3 {[%clk 0:02:59.6]}
2... Nc6 {[%clk 0:02:59.8]} 3. g3 {[%clk 0:02:59.6]} 3... g6 {[%clk 0:03:00.5]}
4. Bg2 {[%clk 0:02:58.9]} 4... Bg7 {[%clk 0:03:01.2]} 5. Nf3 {[%clk 0:02:59]}
5... e6 {[%clk 0:03:01.7]} 6. O-O {[%clk 0:02:58.3]} 6... Nge7 {[%clk
0:03:02.3]} 7. d3 {[%clk 0:02:58.1]} 7... O-O {[%clk 0:03:02.2]} 8. Be3 {[%clk
0:02:57.9]} 8... Nd4 {[%clk 0:03:00.9]} 9. Bxd4 {[%clk 0:02:55.2]} 9... cxd4
{[%clk 0:03:01]} 10. Ne4 {[%clk 0:02:44.7]} 10... d5 {[%clk 0:02:57.7]} 11. Ned2
{[%clk 0:02:44.5]} 11... dxc4 {[%clk 0:02:32.4]} 12. Nxc4 {[%clk 0:02:43.3]}
12... Bd7 {[%clk 0:02:31]} 13. a4 {[%clk 0:02:37.2]} 13... Bc6 {[%clk
0:02:30.3]} 14. Qb3 {[%clk 0:02:35.1]} 14... Bd5 {[%clk 0:02:12.1]} 15. a5
{[%clk 0:02:30.8]} 15... Rc8 {[%clk 0:02:10.9]} 16. Rfc1 {[%clk 0:02:29.9]}
16... h6 {[%clk 0:01:57]} 17. Nfd2 {[%clk 0:02:23.6]} 17... Bxg2 {[%clk
0:01:54.3]} 18. Kxg2 {[%clk 0:02:23.6]} 18... Qd5+ {[%clk 0:01:47.6]} 19. Kg1
{[%clk 0:02:23.2]} 19... h5 {[%clk 0:01:36.2]} 20. h4 {[%clk 0:02:07.8]} 20...
Rc5 {[%clk 0:01:28.7]} 21. Ra4 {[%clk 0:02:02.6]} 21... Nc6 {[%clk 0:01:25.2]}
22. Rca1 {[%clk 0:01:59]} 22... Rb5 {[%clk 0:01:24.6]} 23. Qc2 {[%clk 0:01:59]}
23... g5 {[%clk 0:01:19.4]} 24. hxg5 {[%clk 0:01:57.9]} 24... Qxg5 {[%clk
0:01:20]} 25. Nd6 {[%clk 0:01:52.5]} 25... Rd5 {[%clk 0:01:06.7]} 26. Nxb7
{[%clk 0:01:44.8]} 26... Ne5 {[%clk 0:00:55]} 27. Nf3 {[%clk 0:01:27.5]} 27...
Nxf3+ {[%clk 0:00:54.6]} 28. exf3 {[%clk 0:01:28.4]} 28... h4 {[%clk 0:00:53]}
29. Kg2 {[%clk 0:01:28.7]} 29... Be5 {[%clk 0:00:44.2]} 30. Qc1 {[%clk
0:01:13.2]} 30... Qg6 {[%clk 0:00:28.8]} 31. f4 {[%clk 0:01:12.1]} 31... Bb8
{[%clk 0:00:20.2]} 32. a6 {[%clk 0:00:50.5]} 32... Kg7 {[%clk 0:00:17.6]} 33.
Ra5 {[%clk 0:00:49.9]} 33... Rxa5 {[%clk 0:00:14]} 34. Rxa5 {[%clk 0:00:50.8]}
34... f6 {[%clk 0:00:12.4]} 35. Kf3 {[%clk 0:00:28.3]} 35... Qxd3+ {[%clk
0:00:12]} 36. Kg2 {[%clk 0:00:28.6]} 36... Qe4+ {[%clk 0:00:11.1]} 37. Kg1
{[%clk 0:00:16.2]} 37... hxg3 {[%clk 0:00:07.1]} 38. Qf1 {[%clk 0:00:12.4]}
38... Rh8 {[%clk 0:00:06.2]} 39. Qg2 {[%clk 0:00:05.3]} 39... Qe1+ {[%clk
0:00:04.4]} 40. Qf1 {[%clk 0:00:04.4]} 40... Rh1+ {[%clk 0:00:04]} 0-1

[Event "Late-Titled-Tuesday-Blitz-April-16-2024"]
[Site "Chess.com"]
[Date "2024.04.16"]
[Round "10"]
[White "DanielNaroditsky"]
[Black "Anton_Demchenko"]
[Result "1-0"]
[WhiteElo "3124"]
[BlackElo "2962"]
[TimeControl "180+1"]
[EndTime "15:54:50 PDT"]
[Termination "DanielNaroditsky won by resignation"]

1. e4 {[%clk 0:03:00.9]} 1... e5 {[%clk 0:03:00]} 2. Nf3 {[%clk 0:03:01.2]} 2...
Nc6 {[%clk 0:03:00.5]} 3. Bb5 {[%clk 0:02:57.9]} 3... a6 {[%clk 0:03:00.5]} 4.
Ba4 {[%clk 0:02:58.6]} 4... Nge7 {[%clk 0:03:01]} 5. Nc3 {[%clk 0:02:58.6]} 5...
d6 {[%clk 0:03:00]} 6. Bb3 {[%clk 0:02:48.3]} 6... Na5 {[%clk 0:02:54.3]} 7. d4
{[%clk 0:02:48.5]} 7... Nxb3 {[%clk 0:02:52.7]} 8. axb3 {[%clk 0:02:48.8]} 8...
Nc6 {[%clk 0:02:40.9]} 9. dxe5 {[%clk 0:02:39.6]} 9... dxe5 {[%clk 0:02:28.9]}
10. Qxd8+ {[%clk 0:02:39.3]} 10... Kxd8 {[%clk 0:02:29.8]} 11. Be3 {[%clk
0:02:39]} 11... Be6 {[%clk 0:02:16]} 12. O-O-O+ {[%clk 0:02:32.8]} 12... Kc8
{[%clk 0:02:16.6]} 13. Nd5 {[%clk 0:02:16.3]} 13... f6 {[%clk 0:02:11.7]} 14.
Rd2 {[%clk 0:02:07]} 14... a5 {[%clk 0:01:50.8]} 15. c3 {[%clk 0:01:57.4]} 15...
b6 {[%clk 0:01:26.1]} 16. Rhd1 {[%clk 0:01:45.3]} 16... Kb7 {[%clk 0:01:26.1]}
17. h3 {[%clk 0:01:42.7]} 17... Be7 {[%clk 0:01:19.5]} 18. Ng1 {[%clk
0:01:28.4]} 18... Rhe8 {[%clk 0:01:16.3]} 19. Ne2 {[%clk 0:01:27.6]} 19... Bf8
{[%clk 0:01:15.4]} 20. Ng3 {[%clk 0:01:18.1]} 20... Ne7 {[%clk 0:00:57.3]} 21.
c4 {[%clk 0:01:09.1]} 21... Nc6 {[%clk 0:00:55.3]} 22. Nf5 {[%clk 0:01:04.3]}
22... a4 {[%clk 0:00:47.7]} 23. bxa4 {[%clk 0:00:33.8]} 23... Rxa4 {[%clk
0:00:47.2]} 24. b3 {[%clk 0:00:26.9]} 24... Ra3 {[%clk 0:00:46.3]} 25. Kb2
{[%clk 0:00:27.5]} 25... Rea8 {[%clk 0:00:46.6]} 26. Rb1 {[%clk 0:00:26.4]}
26... Na5 {[%clk 0:00:30.7]} 27. Kc2 {[%clk 0:00:24.4]} 27... Nc6 {[%clk
0:00:29.2]} 28. Kd1 {[%clk 0:00:23]} 28... Ra1 {[%clk 0:00:26.9]} 29. Rxa1
{[%clk 0:00:16.7]} 29... Rxa1+ {[%clk 0:00:27.8]} 30. Ke2 {[%clk 0:00:17.4]}
30... Rb1 {[%clk 0:00:28.4]} 31. Rd3 {[%clk 0:00:18]} 31... Rb2+ {[%clk
0:00:27.6]} 32. Kf1 {[%clk 0:00:15]} 32... Bxf5 {[%clk 0:00:17.8]} 33. exf5
{[%clk 0:00:15.9]} 33... e4 {[%clk 0:00:17.9]} 34. Rc3 {[%clk 0:00:13.8]} 34...
Bd6 {[%clk 0:00:18.6]} 35. c5 {[%clk 0:00:09.1]} 35... Be5 {[%clk 0:00:17.9]}
36. Rc1 {[%clk 0:00:08.7]} 36... bxc5 {[%clk 0:00:16.6]} 37. Bxc5 {[%clk
0:00:07.4]} 37... Rxb3 {[%clk 0:00:16.9]} 38. Bf8 {[%clk 0:00:07.7]} 38... Nd4
{[%clk 0:00:07.4]} 39. Bxg7 {[%clk 0:00:06.7]} 39... Nxf5 {[%clk 0:00:08.1]} 40.
Bxf6 {[%clk 0:00:05.7]} 40... Bxf6 {[%clk 0:00:07.5]} 41. Nxf6 {[%clk
0:00:06.4]} 41... Nd6 {[%clk 0:00:03.5]} 42. Nd7 {[%clk 0:00:05]} 42... c6
{[%clk 0:00:04.2]} 43. Nc5+ {[%clk 0:00:05.5]} 43... Kc7 {[%clk 0:00:04.1]} 44.
Nxb3 {[%clk 0:00:06.4]} 44... Kd7 {[%clk 0:00:04.4]} 45. Nd4 {[%clk 0:00:06.8]}
45... Ke7 {[%clk 0:00:05.1]} 46. Nxc6+ {[%clk 0:00:07.3]} 46... Ke6 {[%clk
0:00:05.8]} 47. Nb4 {[%clk 0:00:07.9]} 1-0